bitfinex-derivatives/quotes_BTCF0:USTF0_20210703
["timestamp","ask_amount","ask_price","bid_price","bid_amount"]
[1625322545456,0.24057544,34681.0,34680.0,0.00341715]
[1625322545704,0.29957544,34681.0,34680.0,0.00341715]
[1625322547463,0.29957544,34681.0,34680.0,0.66967674]
[1625322547861,0.29957544,34681.0,34680.0,0.72867674]
[1625322547961,0.24057544,34681.0,34680.0,0.72867674]
[1625322548361,0.24057544,34688.0,34680.0,1.03568674]
[1625322548466,0.9312,34693.0,34680.0,1.03568674]
[1625322548567,0.9902,34693.0,34681.0,0.0034165]
[1625322548767,0.9902,34693.0,34681.0,0.0624165]
[1625322549067,0.9902,34693.0,34682.0,0.00341642]
[1625322549170,0.9902,34693.0,34686.0,0.66499229]
[1625322549568,0.9902,34693.0,34692.0,0.48825544]
[1625322550318,0.9902,34693.0,34692.0,0.24768]
[1625322551768,0.9902,34693.0,34692.0,0.25109635]
[1625322553521,0.9902,34693.0,34692.0,0.49167179]
[1625322554474,1.00728197,34693.0,34692.0,0.49167179]
[1625322555476,0.9902,34693.0,34692.0,0.49167179]
[1625322556280,1.00728154,34693.0,34692.0,0.49167179]
[1625322556380,1.00728154,34693.0,34692.0,0.24399179]
[1625322557329,1.00728154,34693.0,34692.0,0.24057544]
[1625322557884,1.27094154,34693.0,34692.0,0.24057544]
[1625322560990,1.27094154,34693.0,34689.0,0.90873215]
[1625322561291,0.01708308,34692.0,34690.0,0.00341662]
[1625322561391,0.07608308,34692.0,34690.0,0.00341662]
[1625322561541,0.24057544,34691.0,34690.0,0.00341662]
[1625322561791,0.29957544,34691.0,34690.0,0.00341662]
[1625322561891,0.31665854,34691.0,34690.0,0.00341662]
[1625322562696,0.31665854,34691.0,34690.0,0.67227471]
[1625322563797,0.31665854,34691.0,34690.0,0.00341662]
[1625322564300,0.31665854,34691.0,34690.0,0.67327444]
[1625322567355,0.99712022,34691.0,34690.0,1.67925623]
[1625322568409,2.0184616,34691.0,34690.0,2.85356607]
[1625322571670,2.0184616,34691.0,34690.0,2.91256607]
[1625322571819,2.0184616,34691.0,34690.0,3.20925607]
[1625322572419,2.0184616,34691.0,34690.0,3.15025607]
[1625322573272,2.0184616,34691.0,34690.0,2.85356607]
[1625322574123,1.77788616,34691.0,34690.0,2.85356607]
[1625322574624,2.97022062,34691.0,34690.0,2.85356607]
[1625322574774,2.97022062,34691.0,34690.0,2.85014945]
[1625322574876,3.16615062,34691.0,34690.0,2.85014945]
[1625322575024,3.22515062,34691.0,34690.0,2.85014945]
[1625322575274,3.22515062,34691.0,34690.0,0.84954945]
[1625322575375,3.22515062,34691.0,34689.0,1.17490927]
[1625322575725,0.72172632,34690.0,34688.0,0.51680679]
[1625322575924,0.73881279,34690.0,34688.0,0.45780679]
[1625322576025,0.79781279,34690.0,34688.0,0.45780679]
[1625322576126,0.01708638,34689.0,34688.0,0.45780679]
[1625322576228,0.01708638,34689.0,34683.0,0.24057544]
[1625322576327,0.07608638,34689.0,34683.0,0.24057544]
[1625322576628,0.01708647,34688.0,34683.0,0.24057544]
[1625322576778,0.07608647,34688.0,34683.0,0.24057544]
[1625322577179,0.01708664,34687.0,34683.0,0.24057544]
[1625322577381,0.07608664,34687.0,34683.0,0.24057544]
[1625322577679,0.01708677,34686.0,34683.0,0.24057544]
[1625322577779,0.07608677,34686.0,34683.0,0.24057544]
[1625322578230,0.0170863,34685.0,34683.0,0.24057544]
[1625322578531,0.059,34685.0,34683.0,0.24057544]
[1625322578680,0.059,34685.0,34683.0,0.29957544]
[1625322578780,0.72172632,34690.0,34684.0,0.00341701]
[1625322578880,0.78072632,34690.0,34684.0,0.21255701]
[1625322578981,0.78072632,34690.0,34684.0,0.27155701]
[1625322579080,0.01708449,34689.0,34684.0,0.27155701]
[1625322579180,0.07608449,34689.0,34684.0,0.27155701]
[1625322579332,0.07608449,34689.0,34685.0,0.00341686]
[1625322579432,0.07608449,34689.0,34685.0,0.06241686]
[1625322579633,0.059,34689.0,34685.0,0.06241686]
[1625322579833,0.29957544,34686.0,34685.0,0.059]
[1625322580184,0.29957544,34686.0,34685.0,0.06241696]
[1625322580485,0.29957544,34686.0,34685.0,0.00341696]
[1625322580585,0.55058544,34686.0,34685.0,0.00341696]
[1625322580685,0.55058544,34686.0,34683.0,0.48115088]
[1625322581486,0.0170861,34685.0,34683.0,0.48115088]
[1625322581740,0.059,34685.0,34683.0,0.48115088]
[1625322582593,0.24057544,34686.0,34683.0,0.48115088]
[1625322582691,0.059,34685.0,34683.0,0.48115088]
[1625322583044,0.5111737,34684.0,34683.0,0.48115088]
[1625322583244,0.5701737,34684.0,34683.0,0.48115088]
[1625322583346,0.5701737,34684.0,34683.0,0.48456799]
[1625322583495,0.5701737,34684.0,34683.0,0.98919427]
[1625322583596,0.5701737,34684.0,34683.0,0.98577716]
[1625322583797,0.25320676,34690.0,34683.0,1.60377716]
[1625322583946,0.01540676,34690.0,34683.0,2.41689716]
[1625322584147,0.01540676,34690.0,34684.0,0.00341652]
[1625322584252,0.92940676,34693.0,34686.0,0.5]
[1625322584349,0.92940676,34693.0,34687.0,0.5]
[1625322584350,0.89730676,34693.0,34687.0,0.5]
[1625322584447,0.66510676,34693.0,34687.0,0.5]
[1625322584547,0.61790676,34693.0,34687.0,0.559]
[1625322584651,0.54540676,34693.0,34687.0,0.56241609]
[1625322584749,0.48490676,34693.0,34687.0,1.06241609]
[1625322584851,0.48190676,34693.0,34688.0,1.67480352]
[1625322584949,0.47500676,34693.0,34689.0,0.5]
[1625322585102,0.47500676,34693.0,34689.0,0.618]
[1625322585200,0.47500676,34693.0,34690.0,0.0034159]
[1625322585349,0.47500676,34693.0,34691.0,0.5]
[1625322585451,0.47500676,34693.0,34691.0,2.29254279]
[1625322585550,0.41600676,34693.0,34691.0,2.23354279]
[1625322585749,0.41600676,34693.0,34692.0,0.00341587]
[1625322585850,0.41600676,34693.0,34692.0,1.34314219]
[1625322586100,0.32900676,34693.0,34692.0,1.34314219]
[1625322587653,0.32900676,34693.0,34692.0,3.01650253]
[1625322590457,0.9584,34716.0,34693.0,0.059]
[1625322590555,0.9584,34716.0,34694.0,0.5]
[1625322590654,0.9584,34716.0,34695.0,0.057]
[1625322590756,0.9584,34716.0,34696.0,0.5]
[1625322590856,0.9584,34716.0,34697.0,0.057]
[1625322590956,0.9584,34716.0,34698.0,0.5]
[1625322591056,0.9584,34716.0,34698.0,0.616]
[1625322591158,0.9584,34716.0,34703.0,1.33634348]
[1625322591159,1.35989717,34712.0,34703.0,1.33634348]
[1625322591356,1.35989717,34712.0,34703.0,1.45434348]
[1625322591658,1.35989197,34711.0,34703.0,0.118]
[1625322591858,1.35989197,34711.0,34710.0,0.96230176]
[1625322592010,1.35989197,34711.0,34710.0,1.02130176]
[1625322592461,1.35898254,34712.0,34710.0,1.02130176]
[1625322593211,1.35898384,34713.0,34710.0,1.02130176]
[1625322593812,1.35899034,34712.0,34710.0,1.02130176]
[1625322594362,1.3582077,34713.0,34710.0,1.02130176]
[1625322595114,0.9584,34716.0,34710.0,1.02130176]
[1625322595214,1.0174,34716.0,34710.0,1.02130176]
[1625322595871,0.059,34716.0,34715.0,0.48115088]
[1625322596673,2.605409,34716.0,34715.0,0.48115088]
[1625322597123,2.546409,34716.0,34715.0,0.48115088]
[1625322597375,1.685209,34716.0,34715.0,0.69770088]
[1625322597475,1.685209,34716.0,34715.0,0.81570088]
[1625322597624,1.685209,34716.0,34715.0,0.75670088]
[1625322597774,0.32713552,34716.0,34715.0,0.75670088]
[1625322598329,1.35746369,34720.0,34715.0,0.75670088]
[1625322598426,1.41646369,34720.0,34715.0,0.75670088]
[1625322598929,1.35746369,34720.0,34715.0,0.75670088]
[1625322599633,1.35746369,34720.0,34715.0,0.69770088]
[1625322599731,1.35746369,34720.0,34715.0,0.75670088]
[1625322599831,1.35632488,34721.0,34715.0,0.75670088]
[1625322599932,1.41532488,34721.0,34720.0,0.48115088]
[1625322600586,0.059,34721.0,34720.0,0.48115088]
[1625322601985,1.41439602,34721.0,34720.0,0.48115088]
[1625322604340,0.059,34721.0,34720.0,0.48115088]
[1625322605441,1.4140751,34721.0,34720.0,0.48115088]
[1625322606144,2.43053223,34721.0,34720.0,5.088e-05]
[1625322607752,3.95494992,34721.0,34720.0,5.088e-05]
[1625322607948,4.19552536,34721.0,34720.0,5.088e-05]
[1625322610454,4.21260152,34721.0,34720.0,5.088e-05]
[1625322611856,4.19552536,34721.0,34720.0,5.088e-05]
[1625322612106,4.21260114,34721.0,34720.0,5.088e-05]
[1625322613914,2.68818345,34721.0,34720.0,5.088e-05]
[1625322614015,2.72233508,34721.0,34720.0,5.088e-05]
[1625322614867,4.24603938,34721.0,34720.0,5.088e-05]
[1625322617679,5.43108584,34721.0,34720.0,5.088e-05]
[1625322620439,3.90738154,34721.0,34720.0,5.088e-05]
[1625322622491,5.43096123,34721.0,34720.0,5.088e-05]
[1625322624094,5.48996123,34721.0,34720.0,5.088e-05]
[1625322635968,6.1680198,34721.0,34720.0,5.088e-05]
[1625322637927,6.1680198,34721.0,34707.0,0.57398177]
[1625322638126,0.24057544,34714.0,34708.0,0.33362469]
[1625322638375,0.64371544,34714.0,34708.0,0.33362469]
[1625322638475,0.01707484,34713.0,34709.0,0.00341497]
[1625322638678,0.13507484,34713.0,34709.0,0.00341497]
[1625322638877,1.18757812,34710.0,34709.0,0.00341497]
[1625322639028,1.24657812,34710.0,34709.0,0.00341497]
[1625322639177,0.70697812,34710.0,34709.0,0.00341497]
[1625322639279,0.70697812,34710.0,34709.0,0.06241497]
[1625322639378,0.69632147,34710.0,34709.0,0.45231953]
[1625322639577,0.69632147,34710.0,34709.0,0.45573401]
[1625322640127,0.69632147,34710.0,34709.0,0.93688489]
[1625322640377,0.67924773,34710.0,34709.0,0.93688489]
[1625322640478,0.6792252,34713.0,34709.0,2.27255094]
[1625322640578,0.6792252,34713.0,34709.0,2.48932094]
[1625322640929,0.01707197,34712.0,34710.0,0.00341439]
[1625322641029,0.01707197,34712.0,34710.0,0.06241439]
[1625322641179,0.6792252,34713.0,34710.0,0.12141439]
[1625322641430,0.67913131,34717.0,34711.0,1.67137324]
[1625322641580,0.67913131,34717.0,34711.0,1.73037324]
[1625322641729,0.01707148,34716.0,34712.0,0.0034143]
[1625322641931,0.01707148,34716.0,34712.0,0.0624143]
[1625322642180,0.01707148,34716.0,34715.0,0.48115088]
[1625322642331,0.69716426,34716.0,34715.0,0.54015088]
[1625322642480,0.69716426,34716.0,34715.0,0.54356509]
[1625322643033,0.69716426,34716.0,34715.0,0.54015088]
[1625322643333,0.01707148,34716.0,34715.0,2.21026505]
[1625322643835,1.72003505,34716.0,34715.0,2.21026505]
[1625322644436,1.72003505,34716.0,34715.0,2.2068508]
[1625322644888,1.70296357,34716.0,34715.0,2.21026498]
[1625322645638,1.70296357,34716.0,34715.0,3.54524082]
[1625322646040,1.70296357,34716.0,34715.0,3.54182664]
[1625322646388,1.72003531,34716.0,34715.0,3.54182664]
[1625322646491,1.72003531,34716.0,34715.0,2.2068508]
[1625322647290,1.70296357,34716.0,34715.0,2.2102651]
[1625322647791,1.70296357,34716.0,34715.0,2.2068508]
[1625322648142,1.70296357,34716.0,34715.0,3.54035929]
[1625322648644,1.70296357,34716.0,34715.0,2.2068508]
[1625322649145,1.77903538,34716.0,34715.0,2.2068508]
[1625322649250,1.77903538,34716.0,34715.0,2.1478508]
[1625322649345,1.72003538,34716.0,34715.0,2.1478508]
[1625322649447,1.72003538,34716.0,34715.0,2.2068508]
[1625322649546,3.08215192,34716.0,34715.0,2.2068508]
[1625322649647,3.06508011,34716.0,34715.0,2.2068508]
[1625322649901,3.08215172,34716.0,34715.0,2.2068508]
[1625322650147,1.72003518,34716.0,34715.0,2.2068508]
[1625322650248,1.70296357,34716.0,34715.0,2.2068508]
[1625322650904,1.76196357,34716.0,34715.0,2.2068508]
[1625322650999,1.77903556,34716.0,34715.0,2.2068508]
[1625322651097,1.77903556,34716.0,34715.0,2.1478508]
[1625322651347,1.77903556,34716.0,34715.0,2.2068508]
[1625322651447,1.77903556,34716.0,34715.0,2.1478508]
[1625322652198,2.019611,34716.0,34715.0,2.1478508]
[1625322652299,2.078611,34716.0,34715.0,2.1478508]
[1625322652401,3.44073147,34716.0,34715.0,2.1478508]
[1625322653201,3.44073147,34716.0,34715.0,0.81496025]
[1625322653750,3.44073147,34716.0,34715.0,0.48115088]
[1625322653851,1.7377679,34716.0,34715.0,0.48115088]
[1625322654403,4.97343937,34716.0,34715.0,0.48115088]
[1625322655659,4.97343937,34716.0,34713.0,0.33379735]
[1625322655957,4.5983438,34714.0,34711.0,0.33404292]
[1625322656157,4.7163438,34714.0,34711.0,0.33404292]
[1625322656257,0.49498544,34712.0,34711.0,0.33404292]
[1625322656357,0.55398544,34712.0,34711.0,0.33404292]
[1625322656708,3.63673903,34712.0,34711.0,0.33404292]
[1625322657212,3.57773903,34712.0,34711.0,0.33404292]
[1625322657309,3.33716359,34712.0,34711.0,0.33404292]
[1625322657513,3.39616359,34712.0,34711.0,0.33404292]
[1625322657810,3.39616359,34712.0,34711.0,0.66781617]
[1625322658209,3.39616359,34712.0,34711.0,0.90839161]
[1625322658962,3.39616359,34712.0,34711.0,0.57458425]
[1625322659662,4.58838437,34712.0,34711.0,0.57458425]
[1625322660212,4.82895981,34712.0,34711.0,0.57458425]
[1625322661367,4.82895981,34712.0,34711.0,0.24057544]
[1625322661769,4.82895981,34712.0,34711.0,0.74151132]
[1625322662218,4.82895981,34712.0,34711.0,0.24057544]
[1625322664375,6.36187429,34712.0,34711.0,0.40757393]
[1625322664924,6.36187429,34712.0,34711.0,0.24057544]
[1625322666929,6.36187429,34712.0,34709.0,0.50107639]
[1625322667228,0.01707615,34711.0,34709.0,0.50107639]
[1625322667378,0.07607615,34711.0,34709.0,0.50107639]
[1625322667678,0.07607615,34711.0,34707.0,0.66810185]
[1625322667679,5.80712286,34710.0,34707.0,0.16707945]
[1625322667779,5.86612286,34710.0,34707.0,0.16707945]
[1625322667929,0.01707663,34709.0,34707.0,0.16707945]
[1625322668128,0.07607663,34709.0,34707.0,0.16707945]
[1625322668230,5.79013181,34708.0,34706.0,0.50122615]
[1625322668329,6.03070725,34708.0,34706.0,0.50122615]
[1625322668429,6.14870725,34708.0,34706.0,0.50122615]
[1625322668529,6.16578504,34708.0,34706.0,0.50122615]
[1625322668730,5.8074583,34707.0,34703.0,0.74216773]
[1625322668879,5.8664583,34707.0,34703.0,0.74216773]
[1625322668982,5.9254583,34707.0,34703.0,0.74216773]
[1625322669079,0.01707801,34706.0,34703.0,0.74216773]
[1625322669180,0.13507801,34706.0,34703.0,0.74216773]
[1625322669330,4.25780169,34704.0,34703.0,0.40777287]
[1625322669430,4.52968169,34704.0,34703.0,0.40777287]
[1625322669531,4.64768169,34704.0,34703.0,0.40777287]
[1625322669830,4.66475997,34704.0,34703.0,0.40777287]
[1625322669930,0.40695828,34704.0,34703.0,0.24057544]
[1625322670181,0.40695828,34704.0,34698.0,0.24057544]
[1625322670284,0.24057544,34699.0,34698.0,0.24057544]
[1625322670381,0.35857544,34699.0,34698.0,0.24057544]
[1625322671186,3.25259312,34699.0,34698.0,0.90925857]
[1625322671734,4.61352515,34699.0,34698.0,0.24057544]
[1625322672034,4.61352515,34699.0,34697.0,0.50148382]
[1625322672284,0.24057544,34698.0,34697.0,0.50148382]
[1625322672386,0.35857544,34698.0,34697.0,0.50148382]
[1625322672485,0.35857544,34698.0,34697.0,0.16716127]
[1625322673637,0.35857544,34698.0,34696.0,0.16711051]
[1625322673638,4.61155948,34698.0,34696.0,0.16711051]
[1625322674138,3.4003889,34697.0,34695.0,0.1669862]
[1625322674238,3.7013489,34697.0,34695.0,0.1669862]
[1625322674339,3.7603489,34697.0,34695.0,0.1669862]
[1625322674841,3.40010562,34696.0,34693.0,0.50108061]
[1625322675040,3.45910562,34696.0,34693.0,0.50108061]
[1625322675397,2.21015998,34694.0,34693.0,0.8351546]
[1625322675493,2.26915998,34694.0,34693.0,0.8351546]
[1625322675743,2.26915998,34694.0,34693.0,0.50111472]
[1625322676346,2.75031086,34694.0,34693.0,0.50111472]
[1625322677847,3.93948654,34694.0,34691.0,0.50095998]
[1625322678298,4.18006198,34694.0,34691.0,0.50095998]
[1625322678449,2.20867924,34692.0,34691.0,0.16698666]
[1625322678598,2.26767924,34692.0,34691.0,0.16698666]
[1625322678750,2.26767924,34692.0,34690.0,0.83499002]
[1625322678751,2.26767924,34692.0,34690.0,0.66784561]
[1625322678849,2.26767924,34692.0,34690.0,0.16688564]
[1625322679149,1.18852961,34691.0,34689.0,0.74123173]
[1625322679349,1.24752961,34691.0,34689.0,0.74123173]
[1625322679650,1.24752961,34691.0,34690.0,0.16687925]
[1625322680100,0.39864973,34691.0,34690.0,0.50056182]
[1625322680554,0.39864973,34691.0,34690.0,0.16687925]
[1625322682307,0.63922517,34691.0,34690.0,0.16687925]
[1625322682407,0.63922517,34691.0,34689.0,0.5003472]
[1625322682912,0.63922517,34691.0,34688.0,0.50008897]
[1625322683112,0.69822517,34691.0,34688.0,0.50008897]
[1625322683462,0.33932954,34689.0,34686.0,0.50047522]
[1625322683561,0.70715954,34689.0,34686.0,0.50047522]
[1625322683661,0.76615954,34689.0,34686.0,0.50047522]
[1625322683911,0.33934446,34688.0,34685.0,0.50062357]
[1625322684061,0.45734446,34688.0,34685.0,0.50062357]
[1625322684262,0.96622517,34688.0,34684.0,0.50064276]
[1625322684365,0.24057544,34685.0,34684.0,0.50064276]
[1625322685214,0.24057544,34685.0,34684.0,0.16688092]
[1625322685565,0.24057544,34685.0,34683.0,0.74121819]
[1625322686918,0.24057544,34685.0,34683.0,0.24057544]
[1625322687018,0.24057544,34685.0,34683.0,0.40725172]
[1625322688019,0.24057544,34685.0,34683.0,0.49058994]
[1625322688523,0.24057544,34685.0,34684.0,0.08332373]
[1625322689973,0.24057544,34685.0,34683.0,0.49050747]
[1625322690075,0.48285544,34685.0,34683.0,0.49050747]
[1625322691829,0.24057544,34685.0,34683.0,0.49050747]
[1625322692331,0.24057544,34685.0,34683.0,0.24057544]
[1625322692932,0.24057544,34685.0,34683.0,0.32377098]
[1625322693433,0.24057544,34685.0,34683.0,0.24057544]
[1625322700301,0.24057544,34685.0,34684.0,0.00341681]
[1625322705907,0.25765954,34685.0,34684.0,0.00341681]
[1625322708416,0.25765954,34685.0,34684.0,0.25270481]
[1625322710924,0.25765954,34685.0,34684.0,0.08651281]
[1625322711020,0.49709954,34685.0,34684.0,0.08651281]
[1625322711674,0.49709954,34685.0,34684.0,0.58538134]
[1625322712176,0.49709954,34685.0,34684.0,0.50228534]
[1625322713175,0.49709954,34685.0,34684.0,0.58538782]
[1625322714028,0.49709954,34685.0,34684.0,0.50228534]
[1625322716286,0.49709954,34685.0,34684.0,0.83485393]
[1625322718038,0.49709954,34685.0,34684.0,1.16773224]
[1625322720846,0.49709954,34685.0,34684.0,2.16733251]
[1625322721698,0.25765954,34685.0,34684.0,2.16733251]
[1625322722000,0.0170841,34685.0,34684.0,2.45978251]
[1625322722149,8.41e-05,34685.0,34684.0,2.45978251]
[1625322722298,8.41e-05,34685.0,34684.0,2.51878251]
[1625322722398,0.84937964,34687.0,34684.0,2.51878251]
[1625322722600,0.84937964,34687.0,34686.0,0.54015088]
[1625322722704,0.8498757,34690.0,34686.0,0.59915088]
[1625322722901,0.8498757,34690.0,34686.0,0.60256709]
[1625322723203,0.01708095,34689.0,34687.0,0.00341619]
[1625322723304,0.01708095,34689.0,34687.0,0.12141619]
[1625322723452,0.8498757,34690.0,34687.0,0.12141619]
[1625322723653,0.3401947,34691.0,34689.0,3.32941349]
[1625322723853,0.3401947,34691.0,34689.0,3.38841349]
[1625322724054,0.3401947,34691.0,34690.0,0.003416]
[1625322724155,0.8502673,34695.0,34690.0,4.71806814]
[1625322724454,0.8502673,34695.0,34694.0,2.16155208]
[1625322724555,0.8502673,34695.0,34694.0,2.64270296]
[1625322724855,0.86734764,34695.0,34694.0,2.64611903]
[1625322724956,0.01708034,34695.0,34694.0,0.48456695]
[1625322725306,0.01708099,34699.0,34694.0,0.48456695]
[1625322725505,0.13508099,34699.0,34694.0,0.48456695]
[1625322725608,2.524078,34695.0,34694.0,2.64583808]
[1625322725708,2.583078,34695.0,34694.0,2.64583808]
[1625322725957,2.65916014,34695.0,34694.0,2.64583808]
[1625322726058,5.2119005,34695.0,34694.0,1.39759118]
[1625322726158,5.2119005,34695.0,34694.0,0.73153358]
[1625322726513,5.2119005,34695.0,34694.0,0.0834609]
[1625322726609,5.69305138,34695.0,34694.0,0.0834609]
[1625322727112,5.69305138,34695.0,34692.0,0.50105473]
[1625322727113,5.69305138,34695.0,34692.0,0.25069271]
[1625322727511,0.13508367,34694.0,34692.0,0.25069271]
[1625322727816,4.76968952,34693.0,34692.0,0.08356424]
[1625322727911,4.82868952,34693.0,34692.0,0.08356424]
[1625322728011,4.90477329,34693.0,34692.0,0.08356424]
[1625322728563,5.14534873,34693.0,34692.0,0.08356424]
[1625322729363,5.14534873,34693.0,34691.0,0.58524018]
[1625322729813,0.01708392,34692.0,34691.0,0.58524018]
[1625322729913,0.07608392,34692.0,34691.0,0.58524018]
[1625322730013,0.13508392,34692.0,34691.0,0.58524018]
[1625322730416,4.90746116,34692.0,34691.0,0.8365151]
[1625322730665,4.84846116,34692.0,34691.0,0.8365151]
[1625322730866,4.84846116,34692.0,34691.0,0.50225816]
[1625322731467,4.84846116,34692.0,34691.0,0.00215816]
[1625322731617,5.40746116,34692.0,34688.0,1.17186719]
[1625322731719,0.0868,34691.0,34688.0,1.17186719]
[1625322731871,0.2048,34691.0,34690.0,0.99310551]
[1625322732018,0.118,34691.0,34690.0,0.86670551]
[1625322732118,0.118,34691.0,34690.0,0.79580551]
[1625322732369,0.13508587,34691.0,34690.0,0.79260551]
[1625322732473,4.22654674,34691.0,34686.0,0.58698072]
[1625322732570,4.2607196,34691.0,34686.0,0.58698072]
[1625322732672,1.06615632,34687.0,34686.0,0.58698072]
[1625322732870,1.0832427,34687.0,34686.0,0.58698072]
[1625322732971,5.17477203,34687.0,34686.0,0.25156317]
[1625322733471,5.11577203,34687.0,34686.0,0.58701556]
[1625322733972,3.58146984,34687.0,34685.0,1.17306831]
[1625322734323,3.58146984,34687.0,34686.0,0.003417]
[1625322734425,3.56438346,34687.0,34686.0,0.003417]
[1625322734623,3.56438346,34687.0,34686.0,0.24399244]
[1625322734724,3.58146818,34687.0,34686.0,0.24399244]
[1625322735376,3.58146818,34687.0,34686.0,1.41484911]
[1625322735976,3.58146818,34687.0,34686.0,0.24399244]
[1625322736076,3.58146818,34687.0,34686.0,0.24057544]
[1625322736428,3.64046818,34687.0,34686.0,0.24057544]
[1625322738579,3.34089274,34687.0,34686.0,0.24057544]
[1625322740139,3.34089274,34687.0,34686.0,1.41079027]
[1625322740236,3.34089274,34687.0,34686.0,1.41420722]
[1625322740937,3.34089274,34687.0,34686.0,1.41079027]
[1625322741890,3.34089274,34687.0,34686.0,0.24057544]
[1625322742190,3.34089274,34687.0,34686.0,1.41131812]
[1625322743595,3.34089274,34687.0,34686.0,1.41473514]
[1625322743894,3.34089274,34687.0,34686.0,1.41131812]
[1625322744393,3.34089274,34687.0,34686.0,1.41473513]
[1625322745546,3.39989274,34687.0,34686.0,1.41473513]
[1625322745698,3.39989274,34687.0,34686.0,1.41131812]
[1625322746948,3.38280802,34687.0,34686.0,1.41131812]
[1625322747048,3.39989325,34687.0,34686.0,1.41131812]
[1625322749453,3.38280802,34687.0,34686.0,1.41131812]
[1625322749652,3.3998933,34687.0,34686.0,1.41131812]
[1625322750606,3.3408933,34687.0,34686.0,1.41131812]
[1625322751506,3.3408933,34687.0,34686.0,1.41473514]
[1625322752610,3.3998933,34687.0,34686.0,1.41473514]
[1625322753663,3.3998933,34687.0,34686.0,0.24399246]
[1625322754613,3.3408933,34687.0,34686.0,0.24399246]
[1625322755265,3.3408933,34687.0,34686.0,1.41520168]
[1625322756616,3.2818933,34687.0,34686.0,1.41520168]
[1625322756819,1.91805019,34687.0,34686.0,1.41520168]
[1625322762028,3.28240574,34687.0,34686.0,1.41520168]
[1625322762577,4.30572242,34687.0,34686.0,2.42039719]
[1625322763028,2.94136687,34687.0,34686.0,2.42039719]
[1625322763879,2.46021599,34687.0,34686.0,2.42039719]
[1625322770796,2.46021599,34687.0,34686.0,3.76073135]
[1625322770995,2.46021599,34687.0,34686.0,3.81973135]
[1625322771396,1.26683196,34687.0,34686.0,3.81973135]
[1625322771495,1.04040196,34687.0,34686.0,3.76073135]
[1625322771696,1.04040196,34687.0,34686.0,3.81973135]
[1625322772148,1.04040196,34687.0,34686.0,3.76073135]
[1625322772900,1.04040196,34687.0,34686.0,3.81973135]
[1625322773700,1.02331668,34687.0,34686.0,3.81973135]
[1625322774301,1.04040045,34687.0,34686.0,3.76073135]
[1625322774753,2.23413372,34687.0,34686.0,3.76073135]
[1625322777811,2.23413372,34687.0,34686.0,2.42039719]
[1625322778358,2.54248372,34687.0,34686.0,2.42039719]
[1625322778459,2.54248372,34687.0,34686.0,3.76300234]
[1625322778912,3.90676165,34687.0,34686.0,2.42039719]
[1625322779463,3.90676165,34687.0,34686.0,1.24918797]
[1625322779816,3.96576165,34687.0,34686.0,1.00861253]
[1625322780015,4.02476165,34687.0,34686.0,1.00861253]
[1625322780114,4.02476165,34687.0,34686.0,1.00519551]
[1625322780916,4.74648797,34687.0,34686.0,1.00861283]
[1625322781167,4.74648797,34687.0,34686.0,0.00341732]
[1625322781168,6.28151866,34687.0,34686.0,0.00341732]
[1625322781417,6.28151866,34687.0,34685.0,0.08412798]
[1625322781518,6.22251866,34687.0,34685.0,0.08412798]
[1625322781618,6.28151866,34687.0,34685.0,0.08412798]
[1625322781770,6.20543489,34687.0,34686.0,0.00341727]
[1625322781870,0.78072632,34687.0,34686.0,0.0875192]
[1625322782078,0.72172632,34687.0,34686.0,0.0875192]
[1625322782168,0.78072632,34687.0,34686.0,0.0875192]
[1625322782319,5.85439122,34687.0,34686.0,0.24064727]
[1625322782469,5.85439122,34687.0,34686.0,0.23723]
[1625322782776,4.3197516,34687.0,34686.0,1.24815819]
[1625322783474,4.07917616,34687.0,34686.0,1.30715819]
[1625322783622,4.07917616,34687.0,34686.0,1.36615819]
[1625322784022,2.71503311,34687.0,34686.0,3.88155922]
[1625322784224,2.69794727,34687.0,34686.0,3.88155922]
[1625322784525,1.50430079,34687.0,34686.0,3.88155922]
[1625322784876,1.50430079,34687.0,34686.0,4.12213466]
[1625322785125,0.48115088,34687.0,34686.0,5.62979243]
[1625322785678,1.50461909,34687.0,34686.0,4.06313466]
[1625322786327,1.50461909,34687.0,34686.0,4.12213466]
[1625322786428,1.50461909,34687.0,34686.0,4.06313466]
[1625322786679,2.69881623,34687.0,34686.0,4.12213466]
[1625322787130,1.50461909,34687.0,34686.0,4.12213466]
[1625322787581,1.50461909,34687.0,34686.0,4.06313466]
[1625322787982,2.69882587,34687.0,34686.0,4.06313466]
[1625322788434,2.69882587,34687.0,34686.0,4.12213466]
[1625322788636,2.69882587,34687.0,34686.0,4.06313466]
[1625322789741,2.69882587,34687.0,34686.0,4.12213466]
[1625322792094,3.38126222,34687.0,34686.0,4.79195751]
[1625322792596,3.38126222,34687.0,34686.0,4.73295751]
[1625322792746,2.18705544,34687.0,34686.0,4.79195751]
[1625322793199,3.38134363,34687.0,34686.0,4.79195751]
[1625322795002,2.18705544,34687.0,34686.0,4.79195751]
[1625322796506,2.18705544,34687.0,34686.0,4.73295751]
[1625322796607,2.18705544,34687.0,34686.0,4.79195751]
[1625322796707,2.18705544,34687.0,34686.0,4.73295751]
[1625322796860,1.16358723,34687.0,34686.0,4.79195751]
[1625322797611,2.18720816,34687.0,34686.0,4.79195751]
[1625322800165,1.70605728,34687.0,34686.0,4.79195751]
[1625322800970,1.70605728,34687.0,34686.0,5.03253295]
[1625322802371,1.19412598,34689.0,34686.0,5.03253295]
[1625322802821,1.19412598,34689.0,34688.0,2.51290383]
[1625322802920,1.19412598,34689.0,34688.0,2.63090383]
[1625322803121,1.19412598,34689.0,34688.0,2.63432025]
[1625322803324,1.19398382,34691.0,34688.0,4.1411248]
[1625322803674,1.19398382,34691.0,34689.0,0.06241639]
[1625322803772,1.19398382,34691.0,34689.0,0.12141639]
[1625322803924,1.43455215,34692.0,34690.0,2.51161843]
[1625322804026,1.43455215,34692.0,34690.0,2.62961843]
[1625322804272,1.43455215,34692.0,34691.0,2.41307175]
[1625322804273,0.24057544,34692.0,34691.0,2.41307175]
[1625322804474,0.24057544,34692.0,34691.0,2.47207175]
[1625322804674,0.25765764,34692.0,34691.0,2.47207175]
[1625322805025,0.25765764,34692.0,34691.0,2.71264719]
[1625322805575,0.25765764,34692.0,34691.0,1.37282772]
[1625322806933,0.0170822,34692.0,34691.0,1.37282772]
[1625322807029,0.0170822,34692.0,34691.0,1.61340316]
[1625322810840,0.0170822,34692.0,34691.0,2.95754031]
[1625322812046,0.0170822,34692.0,34691.0,3.18982031]
[1625322813196,0.01708197,34693.0,34691.0,3.18982031]
[1625322813497,0.01708197,34693.0,34692.0,0.00341639]
[1625322813698,0.01708197,34693.0,34692.0,0.06241639]
[1625322813948,0.01708197,34693.0,34692.0,1.40587571]
[1625322814449,0.01708197,34693.0,34692.0,0.06241639]
[1625322817104,1.38092181,34693.0,34692.0,0.30299183]
[1625322818356,0.01708197,34693.0,34692.0,0.30299183]
[1625322818857,1.38093056,34693.0,34692.0,0.30299183]
[1625322821514,1.68405056,34693.0,34692.0,0.24399183]
[1625322822019,2.19560375,34693.0,34692.0,0.7472722]
[1625322822213,2.19560375,34693.0,34692.0,0.7069722]